[Event "ESP-chT Honor Division 2022"]
[Site "Linares"]
[Date "2022.09.18"]
[Round "2.24"]
[White "Tejedor Fuente, Enrique"]
[Black "Ambartsumova, Karina"]
[Result "1-0"]
[ECO "C67"]
[WhiteElo "2384"]
[BlackElo "2386"]
[Annotator "ChessBase"]
[PlyCount "115"]
[EventDate "2022.09.17"]
[EventType "team-tourn"]
[EventCountry "ESP"]
[SourceTitle "playchess.com"]
[Source "ChessBase"]
[SourceQuality "1"]
[TimeControl "5400+30"]

1. e4 {[%emt 0:03:19]} e5 {[%emt 0:00:28]} 2. Nf3 {[%emt 0:00:03]} Nc6 {[%emt 0:00:25]} 3. Bb5 {[%emt 0:00:59]} Nf6 {[%emt 0:00:47]} 4. O-O {[%emt 0:01:36]} Nxe4 {[%emt 0:00:50]} 5. Re1 {[%emt 0:02:17]} Nd6 {[%emt 0:00:27]} 6. Nxe5 {[%emt 0:00:02]} Be7 {[%emt 0:01:15]} 7. Bf1 {[%emt 0:00:08]} Nxe5 {[%emt 0:01:02]} 8. Rxe5 {[%emt 0:00:02]} O-O {[%emt 0:00:42]} 9. Nc3 {[%emt 0:07:12]} Ne8 {[%emt 0:06:35]} 10. Nd5 {[%emt 0:02:02]} Bd6 {[%emt 0:01:57]} 11. Re1 {[%emt 0:03:13]} c6 {[%emt 0:03:10]} 12. Ne3 {[%emt 0:00:02]} Bc7 {[%emt 0:01:09]} 13. Nf5 {[%emt 0:01:19]} d5 {[%emt 0:01:35]} 14. Ne7+ {[%emt 0:01:37]} Kh8 {[%emt 0:00:08]} 15. Nxc8 {[%emt 0:00:29]} Rxc8 {[%emt 0:00:15]} 16. d4 {[%emt 0:02:26]} Nf6 {[%emt 0:08:03]} 17. Bd3 {[%emt 0:04:29]} Qd6 {[%emt 0:13:04]} 18. g3 {[%emt 0:00:19]} Rce8 {[%emt 0:00:11]} 19. Bf4 {[%emt 0:02:44]} Rxe1+ {[%emt 0:04:47]} 20. Qxe1 {[%emt 0:00:01]} Qd8 {[%emt 0:00:45]} 21. Bxc7 {[%emt 0:03:14]} Qxc7 {[%emt 0:00:24]} 22. Qb4 {[%emt 0:01:18]} Re8 {[%emt 0:02:28]} 23. Re1 {[%emt 0:01:49]} Rxe1+ {[%emt 0:07:14]} 24. Qxe1 {[%emt 0:00:14]} Kg8 {[%emt 0:01:22]} 25. Qb4 {[%emt 0:01:58]} g6 {[%emt 0:06:11]} 26. Kg2 {[%emt 0:02:56]} Kg7 {[%emt 0:06:19]} 27. Qe1 {[%emt 0:01:54]} b6 {[%emt 0:04:37]} 28. Qe3 {[%emt 0:04:49]} Qd6 {[%emt 0:01:41]} 29. c3 {[%emt 0:01:00]} a5 {[%emt 0:03:43]} 30. a3 {[%emt 0:02:02]} c5 {[%emt 0:03:32]} 31. Bb5 {[%emt 0:08:42]} Ng8 {[%emt 0:04:10]} 32. g4 {[%emt 0:08:52]} h6 {[%emt 0:02:20]} 33. h4 {[%emt 0:00:47]} Ne7 {[%emt 0:02:22]} 34. f3 {[%emt 0:05:07]} f6 {[%emt 0:03:16]} 35. Bd3 {[%emt 0:01:17]} g5 {[%emt 0:04:27]} 36. h5 {[%emt 0:05:36]} c4 {[%emt 0:00:09]} 37. Bb1 {[%emt 0:01:19]} Kf7 {[%emt 0:00:29]} 38. f4 {[%emt 0:06:26]} Qxf4 {[%emt 0:03:27]} 39. Qxf4 {[%emt 0:00:34]} gxf4 {[%emt 0:00:01]} 40. Kf3 {[%emt 0:00:03]} Ke6 {[%emt 0:01:16]} 41. Kxf4 {[%emt 0:00:03]} Kf7 {[%emt 0:02:43]} 42. a4 {[%emt 0:08:38]} Ke6 {[%emt 0:00:20]} 43. Bc2 {[%emt 0:01:19]} Kf7 {[%emt 0:00:58]} 44. Bf5 {[%emt 0:01:10]} Kg7 {[%emt 0:00:21]} 45. Be6 {[%emt 0:01:26]} Kf8 {[%emt 0:00:02]} 46. Kf3 {[%emt 0:01:38]} Ke8 {[%emt 0:00:14]} 47. Ke3 {[%emt 0:00:46]} Kd8 {[%emt 0:00:18]} 48. Kf4 {[%emt 0:02:05]} Kc7 {[%emt 0:00:55]} 49. g5 {[%emt 0:01:37]} fxg5+ {[%emt 0:00:44]} 50. Ke5 {[%emt 0:00:01]} Kc6 {[%emt 0:00:56]} 51. Bg4 {[%emt 0:00:46]} Kc7 {[%emt 0:00:38]} 52. Ke6 {[%emt 0:02:07]} Kd8 {[%emt 0:00:26]} 53. Kf6 {[%emt 0:00:37]} Nc6 {[%emt 0:00:47]} 54. Be6 {[%emt 0:00:28]} b5 {[%emt 0:00:24]} 55. Bxd5 {[%emt 0:00:28]} Nxd4 {[%emt 0:00:10]} 56. cxd4 {[%emt 0:00:21]} c3 {[%emt 0:00:12]} 57. bxc3 {[%emt 0:00:17]} bxa4 {[%emt 0:00:04]} 58. Kf5 {[%emt 0:00:31]} 1-0

[Event "ESP-chT Honor Division 2022"]
[Site "Linares"]
[Date "2022.09.19"]
[Round "3.1"]
[White "Harikrishna, Pentala"]
[Black "Shirov, Alexei"]
[Result "1/2-1/2"]
[ECO "C84"]
[WhiteElo "2716"]
[BlackElo "2673"]
[Annotator "TA"]
[PlyCount "132"]
[EventDate "2022.09.17"]
[EventType "team-tourn"]
[EventCountry "ESP"]
[SourceTitle "playchess.com"]
[Source "ChessBase"]
[SourceQuality "1"]
[TimeControl "5400+30"]

{[%evp 20,132,23,22,25,20,55,37,38,29,71,65,63,63,72,68,68,66,63,54,69,56,80,79,74,58,101,64,97,93,96,51,50,30,24,10,11,0,12,30,79,91,85,82,115,111,126,105,114,116,150,63,74,57,75,60,56,46,64,56,58,60,58,58,58,58,73,87,76,8,35,56,443,389,846,892,865,821,1184,1275,5097,4885,2397,1239,4570,4134,4574,1241,1564,223,233,225,225,225,225,0,0,0,0,0,0,0,0,0,0,0,0,0,0,0,0,0,0,0,0]} 1. e4 {[%emt 0:00:04]} e5 {[%emt 0:00:04]} 2. Nf3 {[%emt 0:00:04]} Nc6 {[%emt 0:00:04]} 3. Bb5 {[%emt 0:00:07]} a6 {[%emt 0:00:47]} 4. Ba4 {[%emt 0:00:06]} Nf6 {[%emt 0:00:04]} 5. O-O {[%emt 0:00:09]} Be7 {[%emt 0:00:02]} 6. d3 {[%emt 0:00:08]} b5 {[%emt 0:00:32]} 7. Bb3 {[%emt 0:00:06]} d6 {[%emt 0:00:08]} 8. a3 {[%emt 0:00:07]} Be6 {[%emt 0:14:03]} 9. Bxe6 {[%emt 0:04:20]} fxe6 {[%emt 0:00:03]} 10. Re1 {[%emt 0:06:52]} O-O {[%emt 0:00:44]} 11. Nbd2 {[%emt 0:02:18] BESTDEEP} Nd7 {[%emt 0:20:21] CPLX 2.0 3 (Qd8-e8) (=3). C88: Closed Ruy Lopez: Anti-Marshall Systems.} 12. c3 {[%emt 0:05:32] [#] BESTDEEP} Bg5 $146 {[%emt 0:05:58] CPLX 2.1 35 (Qd8-e8) (=19)} ({Predecessor:} 12... Bf6 13. Nf1 Qe8 14. a4 b4 15. a5 bxc3 16. bxc3 Rb8 17. Bd2 Rb5 18. Qc2 Qa8 {0-1 (33) Pogorelskikh,S (2233)-Gavrilov,A (2495) Voronezh 2017}) 13. b4 {[%emt 0:15:35] CPLX 2.5 18 (Nf3xg5) (=6)} Bf4 {[%emt 0:01:54] BESTDEEP. White is slightly better.} 14. Nb3 {[%emt 0:10:14] CPLX 2.5 9 (a3-a4) (=7)} Nb6 {[%emt 0:16:43] CPLX 2.6 42 (a6-a5) (=20)} 15. Qe2 {[%emt 0:09:48] CPLX 2.6} Bxc1 {[%emt 0:12:33] CPLX 2.6} 16. Rexc1 {[%emt 0:04:51] RECAPT} Ne7 {[%emt 0:00:20] BESTDEEP} 17. c4 {[%emt 0:02:05] BESTDEEP} Ng6 {[%emt 0:00:58] BESTDEEP} 18. g3 {[%emt 0:00:13] Prevents Nf4. CPLX 2.4} bxc4 {[%emt 0:06:28] CPLX 2.5} 19. dxc4 {[%emt 0:00:19] RECAPT} Nd7 {[%emt 0:00:03] CPLX 2.2 15 (Nb6-a4) (=11)} 20. c5 {[%emt 0:05:25] CPLX 2.1 13 (Rc1-d1) (=4)} Nf6 {[%emt 0:00:11] CPLX 2.5 24 (d6-d5) (=12)} 21. cxd6 {[%emt 0:00:55] CPLX 2.2} cxd6 {[%emt 0:00:04] RECAPT} 22. Nfd2 {[%emt 0:01:20] CPLX 2.1 16 (Rc1-c6) (=5)} Qb6 {[%emt 0:03:19] Inhibits Rc6. CPLX 2.1 43 (Qd8-d7) (=14)} 23. Rc3 {[%emt 0:03:18] CPLX 2.4 37 (Qe2-c4) (=7)} d5 {[%emt 0:07:37] CPLX 2.4 33 (Qb6-b5) (=15)} 24. Rac1 {[%emt 0:02:39] CPLX 2.7 4 (Rc3-c5) (=7)} (24. Rc5 {is more complex.} Nd7 25. exd5 Nxc5 26. bxc5 Qb5 27. Qxb5 axb5 28. d6) 24... Qb5 {[%emt 0:00:13] CPLX 2.7 3 (Rf8-e8) (=14)} 25. Qxb5 {[%emt 0:06:03] CPLX 2.8 45 (Qe2-e1) (=9)} axb5 {[%emt 0:00:03] RECAPT} 26. Nc5 {[%emt 0:00:17] CPLX 2.2 20 (Nb3-a5) (=10)} d4 {[%emt 0:01:06] CPLX 2.2 0 (Rf8-e8) (=12)} 27. Rb3 {[%emt 0:01:06] CPLX 2.3 14 (Rc3-c2) (=10)} Rfc8 {[%emt 0:00:07] CPLX 2.0} 28. Rd1 {[%emt 0:05:10] CPLX 2.1 11 (Rc1-a1) (=10)} Nf8 {[%emt 0:00:16] CPLX 2.1 12 (Kg8-f7) (=12)} 29. f4 {[%emt 0:01:09] CPLX 2.1} N6d7 {[%emt 0:06:33] [#] CPLX 2.3 49 (e5xf4) (=14)} (29... exf4 $11 {feels stronger.} 30. gxf4 Rd8) 30. Nxd7 $1 $16 {[%emt 0:00:41] White is more active. DEEPSTRONG} Nxd7 {[%emt 0:00:06] RECAPT} 31. Nf3 {[%emt 0:00:10] EASY} exf4 {[%emt 0:00:50] CPLX 2.2 33 (Ra8-a7) (=14)} 32. gxf4 {[%emt 0:01:22] RECAPT} Nf6 {[%emt 0:02:08] CPLX 2.2 15 (Rc8-f8) (=14)} 33. Nxd4 {[%emt 0:01:20] CPLX 2.3} Nxe4 {[%emt 0:00:23] CPLX 2.2} 34. Nxb5 {[%emt 0:01:10] CPLX 2.1} Rc2 {[%emt 0:02:08] CPLX 2.2 34 (Rc8-c6) (=14)} 35. Rbd3 {[%emt 0:03:08] CPLX 2.4 87 (Rb3-e3) (=11)} (35. Re3 $16 Nf6 36. Rxe6) 35... Ra2 $14 {[%emt 0:00:28] CPLX 2.4} 36. Rd4 {[%emt 0:03:43] BESTDEEP} Rb8 {[%emt 0:00:19] CPLX 2.7 18 (Ne4-f2) (=14)} 37. Rd8+ {[%emt 0:01:44] CPLX 2.9 15 (Rd4xe4) (=11)} Rxd8 {[%emt 0:00:06] EASY} 38. Rxd8+ {[%emt 0:00:03][%mdl 4096] Endgame KRN-KRN. RECAPT} Kf7 {[%emt 0:00:10] LEGAL} 39. Rd3 {[%emt 0:00:24] BESTDEEP} Kf6 {[%emt 0:01:04] CPLX 2.2 2 (h7-h5) (=12)} 40. Nc3 {[%emt 0:02:33] BESTDEEP} Nxc3 {[%emt 0:00:38] EASY} 41. Rxc3 {[%emt 0:00:04] KR-KR. RECAPT} Rb2 {[%emt 0:00:06] BESTDEEP} 42. Rc5 {[%emt 0:00:17] CPLX 2.1} Rb1+ {[%emt 0:00:13] [#] CPLX 2.1 15 (Rb2-b3) (=12)} 43. Kf2 $1 {[%emt 0:00:55] CPLX 2.0} Rb2+ {[%emt 0:00:02] CPLX 2.0} 44. Ke1 {[%emt 0:01:05] RELBLUND 68 (Kf2-e3) (=11)} ({Better is} 44. Ke3 $16) 44... Rxh2 {[%emt 0:00:05] CPLX 2.1 27 (Rb2-a2) (=12)} 45. a4 {[%emt 0:00:19][%cal Ba3a4,Ba4a5,Ba5a6][%mdl 32] aiming for b5. CPLX 2.0} h5 $2 {[%emt 0:01:25][%mdl 8192] RELBLUND 387 (Rh2-a2) (=23)} (45... Ra2 $1 $14) 46. a5 $18 {[%emt 0:00:46] Hoping for a6. CPLX 2.3=>BLUNDERREACT} Rb2 $2 {[%emt 0:01:25] EVAL 400 (Rh2-a2) (=33)} (46... Ra2 47. Rxh5 Ra4) 47. b5 {[%emt 0:00:27] EVAL} h4 {[%emt 0:00:13] EVAL} 48. Kf1 {[%emt 0:00:05] EVAL} h3 {[%emt 0:00:37] BEVAL 363 (Kf6-g6) (=41)} 49. Kg1 {[%emt 0:00:03] BEVAL} Ke7 {[%emt 0:00:18] BEVAL 400 (Rb2-b1) (=50)} 50. a6 {[%emt 0:01:48] BEVAL} Ra2 {[%emt 0:00:10] BEVAL 0 (Rb2-g2) (=49)} 51. Rc8 {[%emt 0:01:38] BEVAL 400 (Rc5-c7) (=18)} Kd7 {[%emt 0:00:09] BEVAL 400 (Ke7-f6) (=57)} 52. Rg8 {[%emt 0:01:01] BEVAL} Kc7 {[%emt 0:00:20] BEVAL 400 (h3-h2) (=66)} 53. Rxg7+ {[%emt 0:00:03] BEVAL} Kb8 {[%emt 0:00:04] BEVAL} 54. Re7 $2 {[%emt 0:00:51] RELBLUND 400 (Rg7-b7) (=26)} (54. Rb7+ Ka8 55. Re7 Rg2+ 56. Kh1) 54... Rg2+ {[%emt 0:00:13] CPLX 3.3} 55. Kh1 {[%emt 0:00:09] CPLX 3.3 8 (Kg1-f1) (=26)} Rb2 {[%emt 0:00:07] CPLX 3.2} 56. Rxe6 {[%emt 0:01:22] White threatens b6 and mate. DEEPSTRONG} Rxb5 {[%emt 0:00:04] CPLX 2.9} 57. Re3 $2 {[%emt 0:00:38] MISS-Kh1-h2 225 (Kh1-h2) (=30)} ({White should play} 57. Kh2 $18 Rf5 58. Re4) 57... Rb1+ $1 $11 {[%emt 0:00:37] DEEPSTRONG=>BLUNDERREACT. The position is equal.} 58. Kh2 {[%emt 0:00:29] EASY} Rf1 {[%emt 0:00:04] Prevents Rf3. CPLX 2.5} 59. Re8+ {[%emt 0:00:48] CPLX 2.6 0 (a6-a7) (=28)} Ka7 {[%emt 0:00:09] EASY} 60. Re4 {[%emt 0:00:05] CPLX 2.6 0 (Re8-f8) (=28)} Rf3 {[%emt 0:00:15] BESTDEEP} 61. Ra4 {[%emt 0:00:02]} Kb8 {[%emt 0:00:46]} 62. a7+ {[%emt 0:00:59]} Ka8 {[%emt 0:00:04]} 63. Kg1 {[%emt 0:00:04]} Rg3+ {[%emt 0:00:50]} 64. Kh1 {[%emt 0:00:04]} Rg2 {[%emt 0:01:19]} 65. f5 {[%emt 0:01:14] Intending Rf4 and mate.} Rf2 {[%emt 0:00:07] Prevents Rf4.} 66. Ra5 {[%emt 0:00:04]} h2 {[%emt 0:00:05] Blacks defense is rewarded with a draw.  Weighted Error Value: White=0.32/Black=0.28 (precise)} 1/2-1/2

[Event "ESP-chT Honor Division 2022"]
[Site "Linares"]
[Date "2022.09.19"]
[Round "3.2"]
[White "Alekseenko, Kirill"]
[Black "Gukesh D"]
[Result "1/2-1/2"]
[ECO "B30"]
[WhiteElo "2707"]
[BlackElo "2726"]
[Annotator "TA"]
[PlyCount "59"]
[EventDate "2022.09.17"]
[EventType "team-tourn"]
[EventCountry "ESP"]
[SourceTitle "playchess.com"]
[Source "ChessBase"]
[SourceQuality "1"]
[TimeControl "5400+30"]

{[%evp 9,59,0,13,16,7,0,18,17,20,-14,0,-9,-14,-23,-3,-14,-14,-27,-7,-19,-19,-52,-47,-37,-48,-59,-6,-25,-24,-60,-31,-38,0,-54,0,-29,35,40,29,29,34,35,45,50,59,0,57,0,58,0,36,0]} 1. e4 c5 2. Nf3 Nc6 3. Bb5 e6 4. Bxc6 bxc6 5. d3 Qc7 {CPLX 2.2 13 (Ng8-e7) (=13)} 6. Nc3 {B30: Sicilian: 2...Nc6 3 Bb5, lines without ...g6.} Ne7 {[#] CPLX 2.1} 7. Nh4 $146 {CPLX 2.1 7 (b2-b3) (=4)} ({Predecessor:} 7. e5 Ng6 8. Qe2 f6 9. exf6 gxf6 10. g3 d5 11. Nh4 Nxh4 12. gxh4 Rg8 13. Bd2 e5 {0-1 (52) De Groote,E (2251)-Domont,A (2328) Biel 2010}) 7... Ng6 {CPLX 2.1 18 (d7-d5) (=10)} 8. Nxg6 {CPLX 2.5. The position is equal.} hxg6 {RECAPT} 9. f4 {CPLX 2.2 34 (h2-h3) (=10)} g5 {CPLX 2.1 14 (d7-d5) (=9)} 10. O-O {CPLX 2.4 9 (f4xg5) (=10)} gxf4 {BESTDEEP} 11. Bxf4 {RECAPT} e5 {BESTDEEP} 12. Be3 {CPLX 2.4} d6 {CPLX 2.3} 13. Ne2 {CPLX 2.4 13 (Qd1-f3) (=8)} Be6 {CPLX 2.3 20 (Qc7-d8) (=7)} 14. Ng3 {CPLX 2.5} g6 {BESTDEEP} 15. Qf3 {CPLX 2.5 33 (Be3-g5) (=10)} Be7 {CPLX 2.7} 16. c3 {BESTDEEP} O-O-O {[%cal Be8c8,Bc8b7,Bb7a8][%mdl 32] CPLX 2.8 0 (d6-d5) (=5)} 17. d4 {CPLX 2.7 11 (b2-b4) (=9)} Rdf8 {RELBLUND 53 (c5xd4) (=9)} (17... cxd4 $15 18. cxd4 d5 19. dxe5 d4) 18. dxe5 {CPLX 3.0 19 (Qf3-e2) (=10)} dxe5 {Threatens to win with ...f5. RECAPT} 19. Qe2 {[%cal Ob2b4] CPLX 2.7 36 (b2-b4) (=12)} Kb7 {White must now prevent ...f5. CPLX 3.6 29 (c5-c4) (=10)} 20. Qc2 $1 {DEEPSTRONG} Ka8 {CPLX 2.7 38 (c5-c4) (=12)} 21. Rf2 {RELBLUND 54 (c3-c4) (=14)} (21. c4 $1 $11) 21... Rh4 {CPLX 2.7 54 (Qc7-c8) (=14)} ({Black should try} 21... Qc8 $15 22. Raf1 c4) 22. Raf1 {CPLX 2.7 29 (c3-c4) (=14)} Qc8 {RELBLUND 64 (c5-c4) (=17)} (22... Bxa2 $2 23. b3 $18) (22... c4 $11) 23. c4 $14 {CPLX 2.8} Rh7 {BESTDEEP} 24. h3 {[%cal Og3f5] CPLX 2.7} f6 {CPLX 2.5 5 (Rf8-g8) (=15)} 25. b3 {CPLX 2.4} Rhf7 {CPLX 2.4 10 (Qc8-d7) (=15)} 26. Bh6 {BESTDEEP} Rh8 {CPLX 2.6 9 (Rf8-d8) (=15)} 27. Be3 {CPLX 2.7 59 (Bh6-c1) (=14)} Rhf8 $1 {DEEPSTRONG} 28. Bh6 {CPLX 2.3 57 (Qc2-b2) (=16)} Rh8 {RELBLUND} 29. Be3 {CPLX 2.7 58 (Bh6-c1) (=17)} Rhf8 $1 {DEEPSTRONG} 30. Bh6 {Weighted Error Value: White=0.18 (very precise) /Black=0.15 (very precise)} 1/2-1/2

[Event "ESP-chT Honor Division 2022"]
[Site "Linares"]
[Date "2022.09.19"]
[Round "3.3"]
[White "Santos Ruiz, Miguel"]
[Black "Korobov, Anton"]
[Result "1/2-1/2"]
[ECO "B92"]
[WhiteElo "2581"]
[BlackElo "2671"]
[Annotator "TA"]
[PlyCount "139"]
[EventDate "2022.09.17"]
[EventType "team-tourn"]
[EventCountry "ESP"]
[SourceTitle "playchess.com"]
[Source "ChessBase"]
[SourceQuality "1"]
[TimeControl "5400+30"]

{[%evp 20,139,0,0,0,8,12,16,28,0,11,0,0,0,0,0,41,31,32,5,84,85,84,85,89,46,46,45,45,39,52,54,35,27,12,13,26,19,23,14,33,35,92,0,32,0,0,0,0,0,0,0,0,0,0,-14,-14,-14,-14,-14,-14,-14,-14,-14,-14,-14,-14,-14,-14,-14,-14,-14,-14,-14,-14,-14,-8,-8,-8,-8,-8,-8,-7,-8,-8,-8,-8,-8,-8,-8,-8,-8,-8,-8,-8,-8,-8,-8,-8,-8,-8,-8,-8,-8,-8,-8,0,-8,-8,-8,-8,-8,-8,-8,0,0,0,0,0,-8,0,0]} 1. e4 {[%emt 0:00:03]} c5 {[%emt 0:00:17]} 2. Nf3 {[%emt 0:00:05]} d6 {[%emt 0:00:05]} 3. d4 {[%emt 0:00:03]} cxd4 {[%emt 0:00:07]} 4. Nxd4 {[%emt 0:00:02]} Nf6 {[%emt 0:00:07]} 5. Nc3 {[%emt 0:00:03]} a6 {[%emt 0:00:10]} 6. Be2 {[%emt 0:00:05]} e5 {[%emt 0:00:46]} 7. Nb3 {[%emt 0:00:04]} Be7 {[%emt 0:00:21]} 8. Be3 {[%emt 0:00:09]} Be6 {[%emt 0:00:42]} 9. O-O {[%emt 0:00:05]} O-O {[%emt 0:00:32]} 10. Bf3 {[%emt 0:00:03] 10.Re1 is the modern continuation.} Nbd7 {[%emt 0:00:51]} 11. a4 {[%emt 0:00:15] CPLX 2.3} Rc8 {[%emt 0:00:52][%cal Ba8c8,Bc8c4,Bc4b4,Bb4b5][%mdl 32] CPLX 2.4. B92: Sicilian Najdorf: 6 Be2.} 12. a5 {[%emt 0:02:05] CPLX 2.4} Rc4 {[%emt 0:05:59] CPLX 2.5 4 (Rc8-c6) (=2)} 13. Nd2 {[%emt 0:18:37] CPLX 2.4} Rb4 {[%emt 0:04:27] [#] CPLX 2.7} 14. Qc1 $146 {[%emt 0:00:43] CPLX 2.4 28 (Qd1-b1) (=7)} ({Predecessor:} 14. b3 Qc7 15. Ndb1 Rc8 16. Ra2 h6 17. Nd5 Bxd5 18. exd5 Rb5 19. c4 Rxa5 20. Na3 {½-½ (39) Willmann,B (2277)-Susla,V (2330) LSS email 2018}) 14... Qc7 {[%emt 0:10:20] BESTDEEP} 15. Nd5 {[%emt 0:22:34] CPLX 2.4 11 (Ra1-a3) (=8)} Bxd5 {[%emt 0:01:33] CPLX 3.8} 16. exd5 {[%emt 0:00:14] Hoping for c4. RECAPT} Rb5 {[%emt 0:00:55][%csl LRa5,LRd5] CPLX 2.5} 17. b4 {[%emt 0:00:05] BESTDEEP} e4 {[%emt 0:09:39] CPLX 2.6 41 (Rb5xb4) (=6)} 18. c4 {[%emt 0:08:26] CPLX 2.8 10 (Bf3-e2) (=6)} Rxb4 {[%emt 0:00:40] EASY} 19. Bd1 {[%emt 0:07:12] BESTDEEP} (19. Qa3 {is more complex.} Rxc4 20. Nxc4 Qxc4 21. Rac1) 19... b6 {[%emt 0:11:09] RELBLUND 79 (Rf8-b8) (=14)} (19... Rb8 $11) 20. axb6 $16 {[%emt 0:01:13][%mdl 64] [#] Discovered Attack. CPLX 2.8} Rxb6 {[%emt 0:03:33] RECAPT} ({Not} 20... Nxb6 21. Qa3 a5 22. Qxa5 $16) 21. Bxb6 {[%emt 0:00:16] RECAPT} Qxb6 {[%emt 0:00:05] RECAPT} 22. Qa3 {[%emt 0:12:06] CPLX 3.1 43 (Ra1-b1) (=8)} Qd4 {[%emt 0:12:17] CPLX 3.3} 23. Ra2 {[%emt 0:00:44] CPLX 3.6} Nc5 {[%emt 0:00:57] CPLX 3.4} 24. Nb3 {[%emt 0:00:47] CPLX 3.5 6 (Qa3-b2) (=7)} Qxc4 {[%emt 0:02:16] EASY} 25. Nxc5 {[%emt 0:00:21] EASY} dxc5 {[%emt 0:00:06] RECAPT} 26. Be2 {[%emt 0:07:20] CPLX 3.5 8 (Bd1-b3) (=7)} Qxd5 {[%emt 0:01:13] CPLX 3.7} 27. Qxa6 {[%emt 0:00:11] BESTDEEP} Qe5 {[%emt 0:02:43] CPLX 3.1 13 (g7-g6) (=8)} 28. Qb7 {[%emt 0:03:26][%mdl 1024] White has compensation. CPLX 3.0 7 (Qa6-c4) (=6)} h5 {[%emt 0:08:26] CPLX 3.1 4 (e4-e3) (=8)} 29. Ra7 {[%emt 0:00:46] CPLX 3.2 9 (g2-g3) (=6)} (29. g3 $5 {[%cal Ra2a7]}) 29... Bd6 {[%emt 0:02:24][%csl Gd6][%cal Re5h2] CPLX 3.2} 30. g3 {[%emt 0:00:05] Active counter play! EASY} Qe6 {[%emt 0:01:20] [#] Inhibits Bc4. CPLX 3.4 57 (h5-h4) (=10)} (30... h4 $14) 31. Rd1 {[%emt 0:04:09] CPLX 3.4 92 (Rf1-c1) (=10)} (31. Rc1 $1 $16) 31... e3 {[%emt 0:01:10] CPLX 3.5 32 (Bd6-e5) (=11)} 32. f4 {[%emt 0:01:25] CPLX 3.9 32 (f2-f3) (=11)} Ne4 {[%emt 0:01:56][%cal Oh5h4] BESTDEEP. The position is equal.} 33. Qd5 {[%emt 0:00:59] CPLX 4.4 0 (Rd1-c1) (=11)} Qxd5 {[%emt 0:01:40] CPLX 4.3} 34. Rxd5 {[%emt 0:00:03] aiming for Bd3. RECAPT} Nc3 $1 {[%emt 0:00:06][%csl LRd5,LRe2] DEEPSTRONG} 35. Rxd6 {[%emt 0:00:20] EASY} Nxe2+ $11 {[%emt 0:00:06][%mdl 4096] Endgame KRR-KRN. EASY} 36. Kf1 {[%emt 0:01:32] CPLX 2.8 0 (Kg1-g2) (=9)} Nd4 {[%emt 0:00:28] ...Rb8 is the strong threat. EASY} 37. Rad7 {[%emt 0:00:39] CPLX 3.0 14 (Rd6-d7) (=10)} Re8 {[%emt 0:03:56] CPLX 3.0} 38. Rxd4 {[%emt 0:01:25] BESTDEEP} cxd4 {[%emt 0:00:19] RECAPT} 39. Rxd4 {[%emt 0:00:03] KR-KR. RECAPT} e2+ {[%emt 0:00:15] CPLX 2.0 0 (Re8-c8) (=8)} 40. Ke1 {[%emt 0:00:03] EASY} h4 {[%emt 0:00:06] BESTDEEP} 41. Rd2 {[%emt 0:00:43] BESTDEEP} hxg3 {[%emt 0:00:21] CPLX 2.9} 42. hxg3 {[%emt 0:00:02] RECAPT} Re3 {[%emt 0:00:08] CPLX 2.6} 43. Rxe2 {[%emt 0:00:03] BESTDEEP} Rxg3 {[%emt 0:00:06] CPLX 2.0} 44. Kf2 {[%emt 0:00:02] EASY} Ra3 {[%emt 0:00:10] CPLX 2.0} 45. Re7 {[%emt 0:00:15] CPLX 2.0 0 (Re2-e8) (=7)} g6 {[%emt 0:01:23] CPLX 2.0} 46. Rb7 {[%emt 0:00:14] CPLX 2.0 0 (Re7-d7) (=7)} Kg7 {[%emt 0:00:19] CPLX 2.0 0 (Ra3-a2) (=6)} 47. Rb6 {[%emt 0:00:16] CPLX 2.0 0 (Rb7-b4) (=7)} Kf8 {[%emt 0:03:01] CPLX 2.0 6 (Ra3-a4) (=6)} 48. f5 {[%emt 0:02:54] BESTDEEP} gxf5 {[%emt 0:04:44] BESTDEEP} 49. Rb5 {[%emt 0:00:07] CPLX 2.0} f4 {[%emt 0:00:07] CPLX 2.0 0 (Kf8-g7) (=6)} 50. Rb4 {[%emt 0:00:13] CPLX 2.0} f3 {[%emt 0:00:05] CPLX 2.0 1 (Kf8-e7) (=6)} 51. Rb8+ {[%emt 0:00:16] CPLX 2.0 1 (Rb4-f4) (=6)} Kg7 {[%emt 0:00:33] CPLX 2.0} 52. Rb6 {[%emt 0:00:04] CPLX 2.0} f6 {[%emt 0:00:10] CPLX 2.0 0 (Ra3-d3) (=6)} 53. Rb4 {[%emt 0:00:16] CPLX 2.0 0 (Rb6-b5) (=6)} Kg6 {[%emt 0:00:21] CPLX 2.0 0 (f6-f5) (=6)} 54. Rg4+ {[%emt 0:00:15] CPLX 2.0 0 (Rb4-b6) (=6)} Kf5 {[%emt 0:00:15] CPLX 2.0 0 (Kg6-f7) (=5)} 55. Rb4 {[%emt 0:00:02] CPLX 2.2} Kg5 {[%emt 0:00:18] CPLX 2.0 0 (Ra3-d3) (=5)} 56. Kg3 {[%emt 0:00:06] BESTDEEP} f5 {[%emt 0:00:37] CPLX 2.0 0 (Ra3-e3) (=5)} 57. Rb6 $1 {[%emt 0:00:26] DEEPSTRONG} f2+ {[%emt 0:00:55] CPLX 2.1 0 (Ra3-e3) (=5)} 58. Kxf2 {[%emt 0:00:04] CPLX 2.7} (58. Kg2 {seems wilder.} Rf3 59. Kf1 Kg4 60. Rg6+) 58... Kg4 {[%emt 0:00:05] CPLX 2.0 0 (Ra3-a2) (=5)} 59. Rb4+ {[%emt 0:01:11] BESTDEEP} f4 {[%emt 0:00:08] And now ...Ra2+ would win. EASY} 60. Rb2 {[%emt 0:00:03] Inhibits Ra2. CPLX 2.0} Rh3 {[%emt 0:00:36] CPLX 2.0 0 (Ra3-a1) (=5)} 61. Rb8 {[%emt 0:00:22]} Rh2+ {[%emt 0:00:29]} 62. Kg1 {[%emt 0:01:19]} Re2 {[%emt 0:00:18]} 63. Kf1 {[%emt 0:00:13]} Kf3 {[%emt 0:00:31]} 64. Rb3+ {[%emt 0:00:23]} Re3 {[%emt 0:00:32]} 65. Rb2 {[%emt 0:00:15]} Ra3 {[%emt 0:04:29]} 66. Rf2+ {[%emt 0:00:05]} Kg3 {[%emt 0:00:55]} 67. Rg2+ {[%emt 0:00:06]} Kh3 {[%emt 0:00:07] ( -> ...Ra1+)} 68. Rg8 {[%emt 0:00:25]} Rg3 {[%emt 0:00:50]} 69. Rh8+ {[%emt 0:00:31]} Kg4 {[%emt 0:00:03]} 70. Kf2 {[%emt 0:00:32] Weighted Error Value: White=0.07 (flawless) /Black=0.07 (flawless)} 1/2-1/2